[Event "Titled Tuesday Blitz November 07 Late 2023"]
[White "Tologon tegin, Semetei"]
[Black "Brodsky, David"]
[WhiteFideId "13800574"]
[BlackFideId "2073250"]
[WhiteElo "2579"]
[BlackElo "2805"]
[Result "1/2-1/2"]
[Round "4"]
[TimeControl "180+1"]
[Date "2023.11.07"]
[WhiteClock "0:00:14"]
[BlackClock "0:00:07"]
[Board "40"]

1. Nc3 {[%clk 0:02:54]}  d5 {[%clk 0:02:58]} 2. d4 {[%clk 0:02:53]}  Nf6 {[%clk 0:02:58]} 3. Bf4 {[%clk 0:02:53]}  c5 {[%clk 0:02:57]} 4. e3 {[%clk 0:02:52]}  cxd4 {[%clk 0:02:57]} 5. exd4 {[%clk 0:02:51]}  a6 {[%clk 0:02:58]} 6. Bd3 {[%clk 0:02:50]}  Nc6 {[%clk 0:02:58]} 7. Nge2 {[%clk 0:02:50]}  Bg4 {[%clk 0:02:55]} 8. f3 {[%clk 0:02:50]}  Bh5 {[%clk 0:02:55]} 9. h4 {[%clk 0:02:49]}  e6 {[%clk 0:02:55]} 10. g4 {[%clk 0:02:49]}  Bg6 {[%clk 0:02:55]} 11. h5 {[%clk 0:02:49]}  Bxd3 {[%clk 0:02:55]} 12. Qxd3 {[%clk 0:02:50]}  Bd6 {[%clk 0:02:49]} 13. Qe3 {[%clk 0:02:44]}  Bxf4 {[%clk 0:02:44]} 14. Nxf4 {[%clk 0:02:43]}  h6 {[%clk 0:02:26]} 15. O-O-O {[%clk 0:02:42]}  Qd6 {[%clk 0:02:21]} 16. Kb1 {[%clk 0:02:35]}  O-O-O {[%clk 0:02:20]} 17. Nd3 {[%clk 0:02:26]}  Kb8 {[%clk 0:02:09]} 18. Na4 {[%clk 0:02:24]}  Nd7 {[%clk 0:02:06]} 19. Nac5 {[%clk 0:02:23]}  Nxc5 {[%clk 0:01:54]} 20. Nxc5 {[%clk 0:02:23]}  Ka7 {[%clk 0:01:31]} 21. Rd3 {[%clk 0:02:22]}  b6 {[%clk 0:01:27]} 22. Nb3 {[%clk 0:02:12]}  Rhe8 {[%clk 0:01:25]} 23. f4 {[%clk 0:02:07]}  f6 {[%clk 0:01:25]} 24. Rhd1 {[%clk 0:02:03]}  e5 {[%clk 0:01:22]} 25. dxe5 {[%clk 0:02:03]}  fxe5 {[%clk 0:01:23]} 26. Rxd5 {[%clk 0:01:48]}  Qxd5 {[%clk 0:01:22]} 27. Rxd5 {[%clk 0:01:49]}  Rxd5 {[%clk 0:01:22]} 28. a3 {[%clk 0:01:49]}  e4 {[%clk 0:01:18]} 29. Nd2 {[%clk 0:01:48]}  Rd4 {[%clk 0:01:01]} 30. b4 {[%clk 0:01:25]}  Kb7 {[%clk 0:00:54]} 31. Kb2 {[%clk 0:01:24]}  Kc7 {[%clk 0:00:54]} 32. Kb3 {[%clk 0:01:24]}  Rd7 {[%clk 0:00:43]} 33. Nc4 {[%clk 0:01:20]}  Rd4 {[%clk 0:00:19]} 34. Ne5 {[%clk 0:01:15]}  Red8 {[%clk 0:00:20]} 35. Nxc6 {[%clk 0:01:09]}  Kxc6 {[%clk 0:00:20]} 36. c3 {[%clk 0:01:09]}  R4d7 {[%clk 0:00:15]} 37. Qxe4+ {[%clk 0:01:09]}  Kc7 {[%clk 0:00:16]} 38. a4 {[%clk 0:01:06]}  Rf8 {[%clk 0:00:13]} 39. g5 {[%clk 0:01:05]}  Rdf7 {[%clk 0:00:12]} 40. Qe5+ {[%clk 0:00:58]}  Kb7 {[%clk 0:00:12]} 41. Qd5+ {[%clk 0:00:52]}  Kc7 {[%clk 0:00:12]} 42. a5 {[%clk 0:00:50]}  bxa5 {[%clk 0:00:11]} 43. Qxa5+ {[%clk 0:00:50]}  Kb7 {[%clk 0:00:11]} 44. Qd5+ {[%clk 0:00:50]}  Kc7 {[%clk 0:00:10]} 45. Qe5+ {[%clk 0:00:50]}  Kb7 {[%clk 0:00:10]} 46. c4 {[%clk 0:00:50]}  hxg5 {[%clk 0:00:05]} 47. fxg5 {[%clk 0:00:49]}  Rc7 {[%clk 0:00:04]} 48. Qd5+ {[%clk 0:00:47]}  Kb8 {[%clk 0:00:04]} 49. h6 {[%clk 0:00:37]}  gxh6 {[%clk 0:00:05]} 50. gxh6 {[%clk 0:00:38]}  Rh8 {[%clk 0:00:04]} 51. Qd6 {[%clk 0:00:34]}  Kb7 {[%clk 0:00:03]} 52. b5 {[%clk 0:00:31]}  axb5 {[%clk 0:00:03]} 53. cxb5 {[%clk 0:00:32]}  Rch7 {[%clk 0:00:04]} 54. Qa6+ {[%clk 0:00:27]}  Kb8 {[%clk 0:00:04]} 55. Qb6+ {[%clk 0:00:27]}  Ka8 {[%clk 0:00:02]} 56. Qc6+ {[%clk 0:00:27]}  Kb8 {[%clk 0:00:02]} 57. b6 {[%clk 0:00:25]}  Rc8 {[%clk 0:00:02]} 58. Qd6+ {[%clk 0:00:25]}  Kb7 {[%clk 0:00:03]} 59. Qg6 {[%clk 0:00:17]}  Rch8 {[%clk 0:00:02]} 60. Qd6 {[%clk 0:00:12]}  Rxh6 {[%clk 0:00:03]} 61. Qc7+ {[%clk 0:00:12]}  Ka6 {[%clk 0:00:03]} 62. Qa7+ {[%clk 0:00:12]}  Kb5 {[%clk 0:00:03]} 63. b7 {[%clk 0:00:12]}  Rh3+ {[%clk 0:00:03]} 64. Kc2 {[%clk 0:00:13]}  Rh2+ {[%clk 0:00:04]} 65. Kd3 {[%clk 0:00:13]}  R8h3+ {[%clk 0:00:04]} 66. Ke4 {[%clk 0:00:13]}  Rh4+ {[%clk 0:00:05]} 67. Kf3 {[%clk 0:00:12]}  R2h3+ {[%clk 0:00:04]} 68. Kg2 {[%clk 0:00:12]}  Rh2+ {[%clk 0:00:05]} 69. Kg3 {[%clk 0:00:13]}  R2h3+ {[%clk 0:00:06]} 70. Kg2 {[%clk 0:00:13]}  Rh2+ {[%clk 0:00:06]} 71. Kg3 {[%clk 0:00:14]}  R2h3+ {[%clk 0:00:07]} 72. Kg2 {[%clk 0:00:14]} 1/2-1/2


[Site "https://www.chess.com"]

[Event "Titled Tuesday Blitz November 07 Late 2023"]
[White "Bordi, Kevin"]
[Black "Gimenez Aguirre, Alejo Ismael"]
[WhiteFideId "621862"]
[BlackFideId "32041667"]
[WhiteElo "2792"]
[BlackElo "2575"]
[Result "1-0"]
[Round "4"]
[TimeControl "180+1"]
[Date "2023.11.07"]
[WhiteClock "0:00:55"]
[BlackClock "0:00:00"]
[Board "42"]

1. d4 {[%clk 0:03:00]}  Nf6 {[%clk 0:02:59]} 2. Bg5 {[%clk 0:03:00]}  e6 {[%clk 0:03:00]} 3. e4 {[%clk 0:03:00]}  d5 {[%clk 0:02:59]} 4. exd5 {[%clk 0:02:56]}  exd5 {[%clk 0:02:58]} 5. Nf3 {[%clk 0:02:57]}  Be7 {[%clk 0:02:57]} 6. Bd3 {[%clk 0:02:57]}  h6 {[%clk 0:02:57]} 7. Bh4 {[%clk 0:02:57]}  O-O {[%clk 0:02:56]} 8. O-O {[%clk 0:02:57]}  Ne4 {[%clk 0:02:55]} 9. Bxe7 {[%clk 0:02:55]}  Qxe7 {[%clk 0:02:56]} 10. Re1 {[%clk 0:02:56]}  Bf5 {[%clk 0:02:52]} 11. Ne5 {[%clk 0:02:53]}  Nd7 {[%clk 0:02:31]} 12. Nc3 {[%clk 0:02:32]}  Nxe5 {[%clk 0:02:20]} 13. Nxd5 {[%clk 0:02:01]}  Qh4 {[%clk 0:01:28]} 14. g3 {[%clk 0:01:40]}  Qd8 {[%clk 0:00:13]} 15. Bxe4 {[%clk 0:01:31]}  Bxe4 {[%clk 0:00:12]} 16. Rxe4 {[%clk 0:01:32]}  Nc4 {[%clk 0:00:13]} 17. Ne3 {[%clk 0:01:17]}  Nxb2 {[%clk 0:00:11]} 18. Qh5 {[%clk 0:01:09]}  Na4 {[%clk 0:00:09]} 19. Rg4 {[%clk 0:01:08]}  Qf6 {[%clk 0:00:08]} 20. Nf5 {[%clk 0:01:04]}  Rfe8 {[%clk 0:00:03]} 21. Nxg7 {[%clk 0:00:57]}  Re2 {[%clk 0:00:00]} 22. Ne8+ {[%clk 0:00:55]} 1-0


[Site "https://www.chess.com"]

[Event "Titled Tuesday Blitz November 07 Late 2023"]
[White "Sokolovsky, Yahli"]
[Black "Streltsov, Alexey"]
[WhiteFideId "2820242"]
[BlackFideId "24104434"]
[WhiteElo "2776"]
[BlackElo "2568"]
[Result "1-0"]
[Round "4"]
[TimeControl "180+1"]
[Date "2023.11.07"]
[WhiteClock "0:00:11"]
[BlackClock "0:00:07"]
[Board "43"]

1. b3 {[%clk 0:03:00]}  d5 {[%clk 0:02:59]} 2. Bb2 {[%clk 0:03:01]}  Bf5 {[%clk 0:03:00]} 3. e3 {[%clk 0:03:02]}  e6 {[%clk 0:03:00]} 4. d4 {[%clk 0:03:03]}  Nf6 {[%clk 0:03:01]} 5. Bd3 {[%clk 0:03:03]}  Bxd3 {[%clk 0:02:56]} 6. cxd3 {[%clk 0:03:03]}  c6 {[%clk 0:02:48]} 7. Nf3 {[%clk 0:03:03]}  Nbd7 {[%clk 0:02:47]} 8. O-O {[%clk 0:03:04]}  Be7 {[%clk 0:02:47]} 9. Nbd2 {[%clk 0:03:03]}  O-O {[%clk 0:02:46]} 10. Ne5 {[%clk 0:03:04]}  Ne8 {[%clk 0:02:38]} 11. Qg4 {[%clk 0:03:01]}  Nd6 {[%clk 0:02:29]} 12. Ndf3 {[%clk 0:02:57]}  Re8 {[%clk 0:02:17]} 13. Ba3 {[%clk 0:02:57]}  Nf5 {[%clk 0:02:11]} 14. Bxe7 {[%clk 0:02:54]}  Qxe7 {[%clk 0:02:11]} 15. Rfc1 {[%clk 0:02:41]}  Rac8 {[%clk 0:02:04]} 16. a3 {[%clk 0:02:36]}  Nxe5 {[%clk 0:01:58]} 17. dxe5 {[%clk 0:02:30]}  c5 {[%clk 0:01:51]} 18. b4 {[%clk 0:02:14]}  b6 {[%clk 0:01:13]} 19. h3 {[%clk 0:02:14]}  h6 {[%clk 0:01:12]} 20. bxc5 {[%clk 0:02:13]}  bxc5 {[%clk 0:01:11]} 21. Qa4 {[%clk 0:02:11]}  Red8 {[%clk 0:01:07]} 22. Rc2 {[%clk 0:02:07]}  Rc7 {[%clk 0:01:07]} 23. Rac1 {[%clk 0:02:05]}  Rdc8 {[%clk 0:01:08]} 24. Rc3 {[%clk 0:01:30]}  g6 {[%clk 0:01:07]} 25. Qc2 {[%clk 0:01:28]}  h5 {[%clk 0:01:00]} 26. Qb1 {[%clk 0:01:18]}  Kg7 {[%clk 0:00:59]} 27. R1c2 {[%clk 0:01:19]}  c4 {[%clk 0:00:54]} 28. Qc1 {[%clk 0:01:14]}  Qc5 {[%clk 0:00:27]} 29. Nd2 {[%clk 0:01:02]}  Nxe3 {[%clk 0:00:20]} 30. fxe3 {[%clk 0:00:28]}  Qxe3+ {[%clk 0:00:21]} 31. Kh1 {[%clk 0:00:28]}  Qxe5 {[%clk 0:00:20]} 32. dxc4 {[%clk 0:00:25]}  dxc4 {[%clk 0:00:20]} 33. Rxc4 {[%clk 0:00:22]}  Rxc4 {[%clk 0:00:16]} 34. Rxc4 {[%clk 0:00:23]}  Rd8 {[%clk 0:00:14]} 35. Nf3 {[%clk 0:00:20]}  Qe2 {[%clk 0:00:12]} 36. Rd4 {[%clk 0:00:17]}  Rb8 {[%clk 0:00:11]} 37. Rd2 {[%clk 0:00:13]}  Qe3 {[%clk 0:00:10]} 38. Rd1 {[%clk 0:00:12]}  Qe2 {[%clk 0:00:08]} 39. Re1 {[%clk 0:00:10]}  Qf2 {[%clk 0:00:08]} 40. Qe3 {[%clk 0:00:10]}  Qb2 {[%clk 0:00:06]} 41. Qe5+ {[%clk 0:00:10]}  Qxe5 {[%clk 0:00:07]} 42. Rxe5 {[%clk 0:00:11]}  Rb1+ {[%clk 0:00:07]} 43. Kh2 {[%clk 0:00:10]}  Rb7 {[%clk 0:00:07]} 44. Ra5 {[%clk 0:00:11]}  f6 {[%clk 0:00:08]} 45. Kg3 {[%clk 0:00:11]}  Kf7 {[%clk 0:00:08]} 46. Kf4 {[%clk 0:00:10]}  e5+ {[%clk 0:00:09]} 47. Ke4 {[%clk 0:00:11]}  Ke6 {[%clk 0:00:10]} 48. Kd3 {[%clk 0:00:07]}  Rd7+ {[%clk 0:00:09]} 49. Ke3 {[%clk 0:00:08]}  Kf5 {[%clk 0:00:09]} 50. Nd2 {[%clk 0:00:06]}  Rc7 {[%clk 0:00:09]} 51. Ne4 {[%clk 0:00:06]}  Rd7 {[%clk 0:00:09]} 52. Ra6 {[%clk 0:00:06]}  Rf7 {[%clk 0:00:05]} 53. Nd6+ {[%clk 0:00:06]}  Ke6 {[%clk 0:00:06]} 54. Nxf7+ {[%clk 0:00:07]}  Kxf7 {[%clk 0:00:07]} 55. Rxa7+ {[%clk 0:00:08]}  Ke6 {[%clk 0:00:08]} 56. a4 {[%clk 0:00:09]}  Kf5 {[%clk 0:00:09]} 57. a5 {[%clk 0:00:09]}  g5 {[%clk 0:00:09]} 58. a6 {[%clk 0:00:10]}  g4 {[%clk 0:00:10]} 59. hxg4+ {[%clk 0:00:10]}  Kxg4 {[%clk 0:00:11]} 60. Rg7+ {[%clk 0:00:10]}  Kf5 {[%clk 0:00:07]} 61. a7 {[%clk 0:00:11]} 1-0


[Site "https://www.chess.com"]

[Event "Titled Tuesday Blitz November 07 Late 2023"]
[White "Koziorowicz, Michal"]
[Black "BardArtem"]
[WhiteFideId "21809194"]
[WhiteElo "2565"]
[BlackElo "2760"]
[Result "0-1"]
[Round "4"]
[TimeControl "180+1"]
[Date "2023.11.07"]
[WhiteClock "0:01:16"]
[BlackClock "0:01:05"]
[Board "45"]

1. e4 {[%clk 0:03:00]}  e5 {[%clk 0:02:59]} 2. Nf3 {[%clk 0:03:01]}  Nc6 {[%clk 0:02:58]} 3. Nc3 {[%clk 0:03:01]}  Nf6 {[%clk 0:02:58]} 4. a4 {[%clk 0:03:02]}  a6 {[%clk 0:02:48]} 5. Bc4 {[%clk 0:03:01]}  Nxe4 {[%clk 0:02:48]} 6. Nd5 {[%clk 0:03:01]}  Nf6 {[%clk 0:02:29]} 7. O-O {[%clk 0:02:59]}  Nxd5 {[%clk 0:02:27]} 8. Bxd5 {[%clk 0:03:00]}  Be7 {[%clk 0:02:27]} 9. Bxc6 {[%clk 0:02:59]}  dxc6 {[%clk 0:02:28]} 10. Nxe5 {[%clk 0:03:00]}  O-O {[%clk 0:02:28]} 11. d4 {[%clk 0:03:00]}  Bf6 {[%clk 0:02:29]} 12. Bf4 {[%clk 0:03:00]}  Be6 {[%clk 0:02:28]} 13. Re1 {[%clk 0:02:59]}  Re8 {[%clk 0:02:22]} 14. c3 {[%clk 0:02:59]}  Qd5 {[%clk 0:02:07]} 15. Qf3 {[%clk 0:02:50]}  Qxf3 {[%clk 0:02:06]} 16. Nxf3 {[%clk 0:02:50]}  Rac8 {[%clk 0:02:06]} 17. Re3 {[%clk 0:02:45]}  h6 {[%clk 0:02:03]} 18. Rae1 {[%clk 0:02:44]}  Re7 {[%clk 0:02:02]} 19. Be5 {[%clk 0:02:38]}  Bxe5 {[%clk 0:01:59]} 20. Rxe5 {[%clk 0:02:39]}  Rce8 {[%clk 0:01:57]} 21. Nd2 {[%clk 0:02:39]}  Kf8 {[%clk 0:01:56]} 22. a5 {[%clk 0:02:36]}  Bd5 {[%clk 0:01:52]} 23. f4 {[%clk 0:02:24]}  f6 {[%clk 0:01:50]} 24. Rxe7 {[%clk 0:02:24]}  Rxe7 {[%clk 0:01:51]} 25. Rxe7 {[%clk 0:02:24]}  Kxe7 {[%clk 0:01:52]} 26. Kf2 {[%clk 0:02:25]}  Kd6 {[%clk 0:01:51]} 27. g3 {[%clk 0:02:23]}  c5 {[%clk 0:01:51]} 28. Ke3 {[%clk 0:02:21]}  cxd4+ {[%clk 0:01:48]} 29. Kxd4 {[%clk 0:02:22]}  c5+ {[%clk 0:01:48]} 30. Kd3 {[%clk 0:02:22]}  Kc6 {[%clk 0:01:49]} 31. c4 {[%clk 0:02:20]}  Be6 {[%clk 0:01:47]} 32. Ke4 {[%clk 0:02:18]}  Kd6 {[%clk 0:01:47]} 33. b3 {[%clk 0:02:15]}  g5 {[%clk 0:01:44]} 34. f5 {[%clk 0:02:14]}  Bd7 {[%clk 0:01:43]} 35. Ke3 {[%clk 0:02:03]}  Bxf5 {[%clk 0:01:36]} 36. h4 {[%clk 0:02:00]}  Bc2 {[%clk 0:01:27]} 37. Kf3 {[%clk 0:01:56]}  Ke5 {[%clk 0:01:24]} 38. Kg4 {[%clk 0:01:56]}  Bd1+ {[%clk 0:01:23]} 39. Kh3 {[%clk 0:01:56]}  Kd4 {[%clk 0:01:14]} 40. Kg2 {[%clk 0:01:29]}  Kd3 {[%clk 0:01:12]} 41. Nf1 {[%clk 0:01:29]}  Be2 {[%clk 0:01:08]} 42. Nh2 {[%clk 0:01:27]}  Bd1 {[%clk 0:01:08]} 43. Nf1 {[%clk 0:01:27]}  Bxb3 {[%clk 0:01:08]} 44. hxg5 {[%clk 0:01:23]}  hxg5 {[%clk 0:01:05]} 45. Kf3 {[%clk 0:01:24]}  Bxc4 {[%clk 0:01:06]} 46. Ne3 {[%clk 0:01:16]}  Be6 {[%clk 0:01:05]} 0-1


[Site "https://www.chess.com"]

[Event "Titled Tuesday Blitz November 07 Late 2023"]
[White "Rosen, Eric"]
[Black "Tikhonov, Viacheslav"]
[WhiteFideId "2032562"]
[BlackFideId "44196407"]
[WhiteElo "2742"]
[BlackElo "2531"]
[Result "1-0"]
[Round "4"]
[TimeControl "180+1"]
[Date "2023.11.07"]
[WhiteClock "0:00:18"]
[BlackClock "0:00:19"]
[Board "48"]

1. e4 {[%clk 0:02:56]}  c5 {[%clk 0:02:59]} 2. Nc3 {[%clk 0:02:54]}  Nc6 {[%clk 0:02:59]} 3. Bb5 {[%clk 0:02:53]}  Nd4 {[%clk 0:02:58]} 4. Nf3 {[%clk 0:02:54]}  e6 {[%clk 0:02:59]} 5. O-O {[%clk 0:02:54]}  a6 {[%clk 0:02:56]} 6. Bd3 {[%clk 0:02:54]}  Nc6 {[%clk 0:02:56]} 7. Be2 {[%clk 0:02:54]}  g5 {[%clk 0:02:49]} 8. d3 {[%clk 0:02:47]}  g4 {[%clk 0:02:47]} 9. Nd2 {[%clk 0:02:47]}  h5 {[%clk 0:02:46]} 10. Nb3 {[%clk 0:02:41]}  Qf6 {[%clk 0:02:23]} 11. Be3 {[%clk 0:02:35]}  Nd4 {[%clk 0:02:23]} 12. f4 {[%clk 0:02:35]}  d6 {[%clk 0:02:19]} 13. e5 {[%clk 0:02:21]}  dxe5 {[%clk 0:02:10]} 14. Ne4 {[%clk 0:02:21]}  Qd8 {[%clk 0:02:06]} 15. fxe5 {[%clk 0:02:17]}  Nf5 {[%clk 0:01:58]} 16. Bxc5 {[%clk 0:02:09]}  Bxc5+ {[%clk 0:01:59]} 17. Nbxc5 {[%clk 0:02:10]}  Qd4+ {[%clk 0:01:54]} 18. Kh1 {[%clk 0:02:01]}  Qxe5 {[%clk 0:01:55]} 19. d4 {[%clk 0:01:45]}  Qc7 {[%clk 0:01:51]} 20. d5 {[%clk 0:01:41]}  b6 {[%clk 0:01:38]} 21. Rxf5 {[%clk 0:00:56]}  exf5 {[%clk 0:01:33]} 22. Qd4 {[%clk 0:00:57]}  fxe4 {[%clk 0:01:16]} 23. Qxh8 {[%clk 0:00:55]}  Kf8 {[%clk 0:01:15]} 24. Ne6+ {[%clk 0:00:46]}  Bxe6 {[%clk 0:00:51]} 25. dxe6 {[%clk 0:00:47]}  fxe6 {[%clk 0:00:32]} 26. Rf1+ {[%clk 0:00:41]}  Ke7 {[%clk 0:00:32]} 27. Rf7+ {[%clk 0:00:39]}  Kxf7 {[%clk 0:00:29]} 28. Qh7+ {[%clk 0:00:40]}  Kf6 {[%clk 0:00:29]} 29. Qxc7 {[%clk 0:00:40]}  Ne7 {[%clk 0:00:29]} 30. Qxb6 {[%clk 0:00:35]}  Rc8 {[%clk 0:00:25]} 31. c3 {[%clk 0:00:30]}  Rc6 {[%clk 0:00:24]} 32. Qd4+ {[%clk 0:00:29]}  Kf5 {[%clk 0:00:24]} 33. Qf2+ {[%clk 0:00:25]}  Ke5 {[%clk 0:00:23]} 34. Qg3+ {[%clk 0:00:23]}  Kf5 {[%clk 0:00:23]} 35. h3 {[%clk 0:00:23]}  gxh3 {[%clk 0:00:22]} 36. Qxh3+ {[%clk 0:00:24]}  Ke5 {[%clk 0:00:22]} 37. Qh2+ {[%clk 0:00:23]}  Kd5 {[%clk 0:00:22]} 38. Qxh5+ {[%clk 0:00:22]}  Kd6 {[%clk 0:00:21]} 39. Qa5 {[%clk 0:00:21]}  Nd5 {[%clk 0:00:19]} 40. Qa3+ {[%clk 0:00:20]}  Ke5 {[%clk 0:00:19]} 41. Qf8 {[%clk 0:00:20]}  Nf4 {[%clk 0:00:19]} 42. Qg7+ {[%clk 0:00:18]}  Kd5 {[%clk 0:00:19]} 43. Qd4# {[%clk 0:00:18]} 1-0


[Site "https://www.chess.com"]

[Event "Titled Tuesday Blitz November 07 Late 2023"]
[White "a-z30"]
[Black "Tristan, Leonardo"]
[BlackFideId "113816"]
[WhiteElo "2529"]
[BlackElo "2741"]
[Result "1-0"]
[Round "4"]
[TimeControl "180+1"]
[Date "2023.11.07"]
[WhiteClock "0:00:48"]
[BlackClock "0:00:40"]
[Board "49"]

1. d3 {[%clk 0:03:00]}  d5 {[%clk 0:02:59]} 2. Nf3 {[%clk 0:03:01]}  Nf6 {[%clk 0:02:59]} 3. g3 {[%clk 0:03:01]}  Bf5 {[%clk 0:02:59]} 4. Bg2 {[%clk 0:03:02]}  e6 {[%clk 0:03:00]} 5. O-O {[%clk 0:03:03]}  Be7 {[%clk 0:03:00]} 6. c4 {[%clk 0:03:03]}  O-O {[%clk 0:02:59]} 7. cxd5 {[%clk 0:03:04]}  exd5 {[%clk 0:02:59]} 8. Nc3 {[%clk 0:03:04]}  c6 {[%clk 0:02:59]} 9. Qc2 {[%clk 0:03:03]}  h6 {[%clk 0:02:59]} 10. e4 {[%clk 0:03:02]}  Bh7 {[%clk 0:02:58]} 11. Nh4 {[%clk 0:02:43]}  Na6 {[%clk 0:02:55]} 12. Nf5 {[%clk 0:02:25]}  Bxf5 {[%clk 0:02:52]} 13. exf5 {[%clk 0:02:26]}  Nc5 {[%clk 0:02:48]} 14. d4 {[%clk 0:02:19]}  Ncd7 {[%clk 0:02:46]} 15. Bf4 {[%clk 0:02:04]}  Nb6 {[%clk 0:02:45]} 16. b3 {[%clk 0:02:01]}  Bd6 {[%clk 0:02:46]} 17. Be5 {[%clk 0:02:00]}  Ng4 {[%clk 0:02:43]} 18. Rfe1 {[%clk 0:01:58]}  Rc8 {[%clk 0:02:04]} 19. h3 {[%clk 0:01:48]}  Nf6 {[%clk 0:02:03]} 20. Qd2 {[%clk 0:01:48]}  Ne8 {[%clk 0:01:49]} 21. g4 {[%clk 0:01:41]}  f6 {[%clk 0:01:48]} 22. Bxd6 {[%clk 0:01:40]}  Nxd6 {[%clk 0:01:49]} 23. Re6 {[%clk 0:01:38]}  Nf7 {[%clk 0:01:49]} 24. h4 {[%clk 0:01:35]}  Rc7 {[%clk 0:01:48]} 25. Rae1 {[%clk 0:01:33]}  Nc8 {[%clk 0:01:48]} 26. Ne2 {[%clk 0:01:31]}  Ncd6 {[%clk 0:01:38]} 27. Nf4 {[%clk 0:01:31]}  Rd7 {[%clk 0:01:34]} 28. Qe3 {[%clk 0:01:16]}  Qb6 {[%clk 0:01:32]} 29. Re7 {[%clk 0:01:07]}  Rxe7 {[%clk 0:01:30]} 30. Qxe7 {[%clk 0:01:01]}  Re8 {[%clk 0:00:44]} 31. Qxe8+ {[%clk 0:01:00]}  Nxe8 {[%clk 0:00:45]} 32. Rxe8+ {[%clk 0:01:00]}  Kh7 {[%clk 0:00:45]} 33. Ng6 {[%clk 0:01:00]}  Qxd4 {[%clk 0:00:43]} 34. Nf8+ {[%clk 0:00:49]}  Kg8 {[%clk 0:00:43]} 35. Ne6+ {[%clk 0:00:48]}  Kh7 {[%clk 0:00:40]} 36. Nxd4 {[%clk 0:00:48]} 1-0


[Site "https://www.chess.com"]

[Event "Titled Tuesday Blitz November 07 Late 2023"]
[White "Tatarinov, Dmitry"]
[Black "Taboas Rodriguez, Daniel"]
[WhiteFideId "24160067"]
[BlackFideId "2208466"]
[WhiteElo "2728"]
[BlackElo "2526"]
[Result "1-0"]
[Round "4"]
[TimeControl "180+1"]
[Date "2023.11.07"]
[WhiteClock "0:00:10"]
[BlackClock "0:00:00"]
[Board "52"]

1. d4 {[%clk 0:02:54]}  Nf6 {[%clk 0:02:59]} 2. c4 {[%clk 0:02:53]}  g6 {[%clk 0:02:59]} 3. Nc3 {[%clk 0:02:53]}  Bg7 {[%clk 0:02:58]} 4. e4 {[%clk 0:02:53]}  d6 {[%clk 0:02:59]} 5. Be2 {[%clk 0:02:54]}  O-O {[%clk 0:03:00]} 6. Be3 {[%clk 0:02:54]}  Nc6 {[%clk 0:03:00]} 7. d5 {[%clk 0:02:53]}  Ne5 {[%clk 0:03:00]} 8. h3 {[%clk 0:02:50]}  e6 {[%clk 0:02:58]} 9. dxe6 {[%clk 0:02:49]}  Bxe6 {[%clk 0:02:58]} 10. b3 {[%clk 0:02:47]}  Nfd7 {[%clk 0:02:37]} 11. Rc1 {[%clk 0:02:46]}  f5 {[%clk 0:02:36]} 12. exf5 {[%clk 0:02:46]}  Bxf5 {[%clk 0:02:35]} 13. Nf3 {[%clk 0:02:46]}  Kh8 {[%clk 0:02:30]} 14. Nd4 {[%clk 0:02:44]}  Qh4 {[%clk 0:02:22]} 15. g3 {[%clk 0:02:39]}  Qd8 {[%clk 0:02:09]} 16. g4 {[%clk 0:02:31]}  c5 {[%clk 0:02:05]} 17. Nxf5 {[%clk 0:02:30]}  gxf5 {[%clk 0:02:05]} 18. gxf5 {[%clk 0:02:30]}  Rxf5 {[%clk 0:01:51]} 19. Qxd6 {[%clk 0:02:28]}  Nf3+ {[%clk 0:01:45]} 20. Bxf3 {[%clk 0:02:28]}  Rxf3 {[%clk 0:01:45]} 21. Nd5 {[%clk 0:02:27]}  Qa5+ {[%clk 0:01:35]} 22. Ke2 {[%clk 0:02:24]}  Ne5 {[%clk 0:01:34]} 23. Rc2 {[%clk 0:02:07]}  Raf8 {[%clk 0:01:28]} 24. Rg1 {[%clk 0:02:03]}  Ng6 {[%clk 0:01:16]} 25. Rg4 {[%clk 0:01:35]}  Rxh3 {[%clk 0:01:11]} 26. Qxc5 {[%clk 0:01:30]}  Qd8 {[%clk 0:01:04]} 27. Rc1 {[%clk 0:01:21]}  Qd7 {[%clk 0:00:52]} 28. Rcg1 {[%clk 0:01:19]}  Qf5 {[%clk 0:00:51]} 29. Nb4 {[%clk 0:01:06]}  Qf3+ {[%clk 0:00:31]} 30. Kd2 {[%clk 0:01:05]}  Rd8+ {[%clk 0:00:29]} 31. Nd5 {[%clk 0:00:59]}  Rh2 {[%clk 0:00:24]} 32. Bd4 {[%clk 0:00:35]}  Qf7 {[%clk 0:00:09]} 33. R1g2 {[%clk 0:00:13]}  Rxg2 {[%clk 0:00:08]} 34. Rxg2 {[%clk 0:00:14]}  b6 {[%clk 0:00:08]} 35. Bxg7+ {[%clk 0:00:13]}  Qxg7 {[%clk 0:00:09]} 36. Qe3 {[%clk 0:00:12]}  Qb2+ {[%clk 0:00:10]} 37. Ke1 {[%clk 0:00:12]}  Qb1+ {[%clk 0:00:07]} 38. Ke2 {[%clk 0:00:12]}  Qxa2+ {[%clk 0:00:08]} 39. Kf3 {[%clk 0:00:11]}  Rf8+ {[%clk 0:00:07]} 40. Kg4 {[%clk 0:00:11]}  Qc2 {[%clk 0:00:06]} 41. Qd4+ {[%clk 0:00:10]}  Kg8 {[%clk 0:00:06]} 42. Kh3 {[%clk 0:00:08]}  Qxb3+ {[%clk 0:00:04]} 43. Rg3 {[%clk 0:00:08]}  Qd1 {[%clk 0:00:04]} 44. Ne7+ {[%clk 0:00:08]}  Kf7 {[%clk 0:00:04]} 45. Qxd1 {[%clk 0:00:08]}  Kxe7 {[%clk 0:00:04]} 46. Rxg6 {[%clk 0:00:09]}  hxg6 {[%clk 0:00:04]} 47. Qa4 {[%clk 0:00:09]}  Rxf2 {[%clk 0:00:00]} 48. Qxa7+ {[%clk 0:00:10]} 1-0


[Site "https://www.chess.com"]